[Event "Austrian Championship 2022"]
[Site "Vienna"]
[Date "2022.08.17"]
[Round "7.6"]
[White "Schreiner, Peter"]
[Black "Kruckenhauser, Arthur"]
[Result "1/2-1/2"]
[ECO "E11"]
[WhiteElo "2416"]
[BlackElo "2303"]
[Annotator "TA"]
[PlyCount "35"]
[EventDate "2022.08.12"]
[EventType "swiss"]
[EventCountry "AUT"]
[SourceTitle "playchess.com"]
[Source "ChessBase"]
[SourceQuality "1"]
[TimeControl "40/5400+30:1800+30"]

{[%evp 13,35,7,0,-2,3,0,18,0,0,0,0,0,-8,-21,0,0,0,-15,-10,-18,-4,-10,-14,-9]} 1. Nf3 {[%emt 0:02:39]} d5 {[%emt 0:00:14]} 2. d4 {[%emt 0:01:07]} Nf6 {[%emt 0:01:56]} 3. c4 {[%emt 0:00:11]} e6 {[%emt 0:00:12]} 4. g3 {[%emt 0:00:18]} Bb4+ {[%emt 0:01:40]} 5. Bd2 {[%emt 0:00:20]} Be7 {[%emt 0:00:06]} 6. Bg2 {[%emt 0:00:51]} O-O {[%emt 0:00:37]} 7. O-O {[%emt 0:02:29]} Nbd7 {[%emt 0:01:41] The position is equal.} 8. Bc3 {[%emt 0:11:32] E11: Bogo-Indian.} Ne4 {[%emt 0:04:38]} 9. Nbd2 {[%emt 0:01:32]} f5 {[%emt 0:05:16] [#]} 10. e3 $146 {[%emt 0:09:20]} ({Predecessor:} 10. Rc1 c6 11. b3 Nxc3 12. Rxc3 Bb4 13. Rc2 a5 14. Qc1 a4 15. a3 axb3 16. Nxb3 Rxa3 {1-0 (41) Petrov,M (2545)-Kazarian,A (2135) Chess.com INT 2022}) 10... b6 {[%emt 0:11:12]} 11. cxd5 {[%emt 0:19:35]} exd5 {[%emt 0:00:08]} 12. Qc2 {[%emt 0:00:43]} a5 {[%emt 0:07:09]} 13. Ne1 {[%emt 0:05:16]} Ba6 {[%emt 0:02:23]} 14. Nd3 {[%emt 0:00:40]} Bd6 {[%emt 0:04:24]} 15. Rfd1 {[%emt 0:05:55]} Ndf6 {[%emt 0:04:12]} 16. f3 {[%emt 0:02:38] Inhibits Ng4.} Nxd2 {[%emt 0:19:33]} 17. Qxd2 {[%emt 0:00:10]} Bxd3 {[%emt 0:01:02]} 18. Qxd3 {[%emt 0:00:05] An interesting draw.  Weighted Error Value: White=0.04 (flawless) /Black=0.05 (flawless)} 1/2-1/2

[Event "Austrian Championship 2022"]
[Site "Vienna"]
[Date "2022.08.17"]
[Round "7.6"]
[White "Stadlinger, Matthias"]
[Black "Tumanyan, Gor"]
[Result "1-0"]
[ECO "B20"]
[WhiteElo "1975"]
[BlackElo "1884"]
[Annotator "NA RC"]
[PlyCount "105"]
[EventDate "2022.08.12"]
[EventType "swiss"]
[EventCountry "AUT"]
[SourceTitle "playchess.com"]
[Source "ChessBase"]
[SourceQuality "1"]
[TimeControl "40/5400+30:1800+30"]

1. e4 {[%emt 0:00:03]} c5 {[%emt 0:00:05]} 2. b3 {[%emt 0:00:04]} Nc6 {[%emt 0:02:29]} 3. Bb2 {[%emt 0:00:05]} d6 {[%emt 0:00:25]} 4. Bb5 {[%emt 0:00:41]} e5 {[%emt 0:07:19]} 5. Ne2 {[%emt 0:02:42]} Nge7 {[%emt 0:04:27]} 6. O-O {[%emt 0:00:49]} Ng6 {[%emt 0:02:56]} 7. Nbc3 Be7 {[%emt 0:14:41]} 8. Nd5 {[%emt 0:26:45]} Bg5 {[%emt 0:14:37]} 9. f4 {[%emt 0:29:26]} a6 {[%emt 0:00:45]} 10. Bd3 {[%emt 0:12:52]} exf4 {[%emt 0:14:19]} 11. Nexf4 {[%emt 0:00:08]} Nce5 {[%emt 0:03:18]} 12. Nxg6 {[%emt 0:02:40]} hxg6 {[%emt 0:03:20]} 13. Bxe5 {[%emt 0:00:24]} dxe5 {[%emt 0:00:09]} 14. Qf3 {[%emt 0:08:53]} Be6 {[%emt 0:09:29]} 15. Rad1 {[%emt 0:01:56]} Rc8 {[%emt 0:07:20]} 16. a4 {[%emt 0:01:55]} O-O {[%emt 0:03:08]} 17. c4 {[%emt 0:02:18]} Qd6 {[%emt 0:03:07]} 18. Qg3 {[%emt 0:02:00]} Bh6 {[%emt 0:00:44]} 19. Bc2 {[%emt 0:01:14]} Rce8 {[%emt 0:01:37]} 20. Qd3 {[%emt 0:01:18]} Kh8 {[%emt 0:01:25]} 21. Rf2 {[%emt 0:01:00]} f5 {[%emt 0:01:18]} 22. Rdf1 {[%emt 0:00:27]} f4 {[%emt 0:02:35]} 23. Nxf4 {[%emt 0:00:14]} Qxd3 {[%emt 0:00:52]} 24. Nxd3 {[%emt 0:00:04]} Rxf2 {[%emt 0:00:44]} 25. Rxf2 {[%emt 0:00:04]} Rd8 {[%emt 0:00:57]} 26. Nxc5 {[%emt 0:00:16]} Bc8 {[%emt 0:00:20]} 27. Nd3 {[%emt 0:00:13]} Kg8 {[%emt 0:00:41]} 28. Kf1 {[%emt 0:00:32]} Re8 {[%emt 0:00:41]} 29. Nb4 {[%emt 0:00:30]} Be6 {[%emt 0:00:28]} 30. Nd5 {[%emt 0:00:20]} Bxd5 {[%emt 0:00:16]} 31. exd5 {[%emt 0:00:04]} Rf8 {[%emt 0:00:12]} 32. Rxf8+ {[%emt 0:02:14]} Kxf8 {[%emt 0:00:01]} 33. Ke2 {[%emt 0:01:31]} Bg5 {[%emt 0:01:26]} 34. c5 {[%emt 0:01:34]} a5 {[%emt 0:00:37]} 35. Bxg6 {[%emt 0:01:26]} Ke7 {[%emt 0:00:40]} 36. Kd3 {[%emt 0:00:27]} Kd7 {[%emt 0:00:20]} 37. Be4 {[%emt 0:00:41]} Bd8 {[%emt 0:00:31]} 38. Kc4 {[%emt 0:01:01]} b6 {[%emt 0:00:27]} 39. Bf5+ {[%emt 0:00:03]} Kc7 {[%emt 0:00:24]} 40. d6+ {[%emt 0:00:36]} Kc6 {[%emt 0:00:36]} 41. Be4+ {[%emt 0:30:06]} Kd7 {[%emt 0:30:33]} 42. Kd5 {[%emt 0:00:08]} bxc5 {[%emt 0:00:40]} 43. Bf5+ {[%emt 0:00:18]} Ke8 {[%emt 0:00:18]} 44. Kxc5 {[%emt 0:00:00]} Bg5 {[%emt 0:00:00]} 45. b4 {[%emt 0:00:00]} axb4 {[%emt 0:00:00]} 46. Kxb4 {[%emt 0:00:00]} Bxd2+ {[%emt 0:00:00]} 47. Kb5 {[%emt 0:00:00]} Be3 {[%emt 0:00:12]} 48. a5 {[%emt 0:00:00]} e4 {[%emt 0:01:12]} 49. Kc6 {[%emt 0:00:00]} Bd2 {[%emt 0:01:10]} 50. a6 {[%emt 0:00:00]} e3 {[%emt 0:00:43]} 51. Bg4 {[%emt 0:00:00]} e2 {[%emt 0:00:32]} 52. Bxe2 {[%emt 0:00:00]} Be3 {[%emt 0:00:05]} 53. Kc7 {[%emt 0:00:00]} 1-0

[Event "Austrian Championship 2022"]
[Site "Vienna"]
[Date "2022.08.17"]
[Round "7.7"]
[White "Kordzadze, Nino"]
[Black "Weichhart, Daniel"]
[Result "0-1"]
[ECO "A20"]
[WhiteElo "2043"]
[BlackElo "1965"]
[Annotator "NA RC"]
[PlyCount "58"]
[EventDate "2022.08.12"]
[EventType "swiss"]
[EventCountry "AUT"]
[SourceTitle "playchess.com"]
[Source "ChessBase"]
[SourceQuality "1"]
[TimeControl "40/5400+30:1800+30"]

1. c4 {[%emt 0:00:03]} c6 {[%emt 0:00:05]} 2. g3 {[%emt 0:00:08]} d5 {[%emt 0:00:05]} 3. Bg2 {[%emt 0:00:09]} e5 {[%emt 0:00:05]} 4. cxd5 {[%emt 0:04:04]} cxd5 {[%emt 0:00:17]} 5. d4 {[%emt 0:00:55]} e4 {[%emt 0:00:17]} 6. Nc3 {[%emt 0:01:09]} Nc6 {[%emt 0:02:11]} 7. a3 {[%emt 0:00:59]} h6 {[%emt 0:02:18]} 8. h4 {[%emt 0:00:49]} Nf6 {[%emt 0:00:49]} 9. Nh3 {[%emt 0:01:36]} Qb6 {[%emt 0:02:47]} 10. O-O {[%emt 0:04:31]} Qxd4 {[%emt 0:04:33]} 11. Bf4 {[%emt 0:03:40]} Be6 {[%emt 0:04:50]} 12. Qb3 {[%emt 0:13:27]} O-O-O {[%emt 0:12:08]} 13. Nb5 {[%emt 0:08:58]} Qb6 {[%emt 0:04:30]} 14. Bc7 {[%emt 0:07:03]} Qa6 {[%emt 0:01:25]} 15. Bxd8 {[%emt 0:00:39]} Kxd8 {[%emt 0:00:02]} 16. a4 {[%emt 0:03:45]} Qb6 {[%emt 0:02:07]} 17. Qc2 {[%emt 0:05:17]} a6 {[%emt 0:02:09]} 18. Na3 {[%emt 0:07:18]} Nd4 {[%emt 0:03:03]} 19. Qd1 {[%emt 0:07:54]} Qxb2 {[%emt 0:02:36]} 20. Rb1 {[%emt 0:00:16]} Nxe2+ {[%emt 0:00:07]} 21. Kh1 {[%emt 0:00:31]} Nxg3+ {[%emt 0:01:40]} 22. fxg3 {[%emt 0:00:19]} Qxa3 {[%emt 0:00:27]} 23. Rxb7 {[%emt 0:02:04]} Qxg3 {[%emt 0:01:16]} 24. Rb3 {[%emt 0:00:31]} Qe5 {[%emt 0:01:07]} 25. Nf4 {[%emt 0:05:59]} Bd6 {[%emt 0:00:52]} 26. Qd2 {[%emt 0:00:42]} d4 {[%emt 0:07:46]} 27. Rb7 {[%emt 0:01:29]} Nh5 {[%emt 0:02:34]} 28. Rc1 {[%emt 0:04:10]} Qxf4 {[%emt 0:01:16]} 29. Qa5+ {[%emt 0:00:10]} Ke8 {[%emt 0:00:06]} 0-1

[Event "Austrian Championship 2022"]
[Site "Vienna"]
[Date "2022.08.17"]
[Round "7.8"]
[White "Steindl, Johannes"]
[Black "Bauer, Thomas"]
[Result "1-0"]
[ECO "B62"]
[WhiteElo "2312"]
[BlackElo "2228"]
[Annotator "RC"]
[PlyCount "83"]
[EventDate "2022.08.12"]
[EventType "swiss"]
[EventCountry "AUT"]
[SourceTitle "playchess.com"]
[Source "ChessBase"]
[SourceQuality "1"]
[TimeControl "40/5400+30:1800+30"]

1. e4 {[%emt 0:05:02]} c5 {[%emt 0:00:05]} 2. Nf3 {[%emt 0:00:15]} Nc6 {[%emt 0:00:05]} 3. d4 {[%emt 0:00:14]} cxd4 {[%emt 0:00:17]} 4. Nxd4 {[%emt 0:00:04]} Nf6 {[%emt 0:00:06]} 5. Nc3 {[%emt 0:00:03]} d6 {[%emt 0:00:15]} 6. Bg5 {[%emt 0:04:27]} e6 {[%emt 1:32:42]} 7. Qd3 {[%emt 0:00:14]} Be7 {[%emt 0:00:30]} 8. O-O-O {[%emt 0:00:48]} O-O {[%emt 0:00:00]} 9. f4 {[%emt 0:06:32]} Qb6 {[%emt 0:00:00]} 10. Nxc6 {[%emt 0:15:21]} bxc6 {[%emt 0:00:00]} 11. Be2 {[%emt 0:07:13]} a5 {[%emt 0:00:00]} 12. Qg3 {[%emt 0:11:03]} Rb8 {[%emt 0:00:00]} 13. b3 {[%emt 0:00:23]} Qc5 {[%emt 0:00:00]} 14. Kb2 {[%emt 0:05:38]} Kh8 {[%emt 0:00:00]} 15. e5 {[%emt 0:06:13]} dxe5 {[%emt 0:00:00]} 16. fxe5 {[%emt 0:01:21]} Nd5 {[%emt 0:00:00]} 17. Bxe7 {[%emt 0:00:13]} Qxe7 {[%emt 0:00:00]} 18. Na4 {[%emt 0:00:43]} Qa7 {[%emt 0:00:00]} 19. Rhe1 {[%emt 0:08:55]} Rb4 {[%emt 0:00:00]} 20. c3 {[%emt 0:02:56]} Re4 {[%emt 0:00:00]} 21. Bd3 {[%emt 0:09:24]} Rf4 {[%emt 0:00:00]} 22. Bc2 {[%emt 0:01:33]} Qf2 {[%emt 0:00:00]} 23. Qd3 {[%emt 0:01:30]} Rh4 {[%emt 0:00:00]} 24. Re2 {[%emt 0:01:17]} Qa7 {[%emt 0:00:00]} 25. g3 {[%emt 0:00:26]} Rh6 {[%emt 0:00:00]} 26. c4 {[%emt 0:03:05]} Ba6 {[%emt 0:00:00]} 27. Qd4 {[%emt 0:01:01]} Qa8 {[%emt 0:00:22]} 28. Red2 {[%emt 0:00:35]} Nb4 {[%emt 0:04:36]} 29. Qd8 {[%emt 0:00:12]} Nd5 {[%emt 0:01:52]} 30. Qxa8 {[%emt 0:00:12]} Rxa8 {[%emt 0:00:01]} 31. cxd5 {[%emt 0:00:06]} cxd5 {[%emt 0:00:37]} 32. Nc5 {[%emt 0:00:18]} Bb5 {[%emt 0:00:39]} 33. Bd3 {[%emt 0:00:08]} Be8 {[%emt 0:00:09]} 34. a4 {[%emt 0:00:26]} Rh5 {[%emt 0:00:28]} 35. Re1 {[%emt 0:00:29]} g6 {[%emt 0:00:54]} 36. Ka3 {[%emt 0:00:47]} Rb8 {[%emt 0:00:45]} 37. Na6 {[%emt 0:01:46]} Rb6 {[%emt 0:00:54]} 38. Nc7 {[%emt 0:00:14]} Bc6 {[%emt 0:00:21]} 39. Rc2 {[%emt 0:00:22]} f6 {[%emt 0:02:43]} 40. exf6 {[%emt 0:00:24]} e5 {[%emt 0:00:03]} 41. f7 {[%emt 0:30:09]} Kg7 {[%emt 0:30:38]} 42. Rf1 {[%emt 0:00:03]} 1-0

[Event "Austrian Championship 2022"]
[Site "Vienna"]
[Date "2022.08.17"]
[Round "7.9"]
[White "Sadilek, Peter"]
[Black "Froewis, Annika"]
[Result "1-0"]
[ECO "A46"]
[WhiteElo "2330"]
[BlackElo "2044"]
[Annotator "TA"]
[PlyCount "67"]
[EventDate "2022.08.12"]
[EventType "swiss"]
[EventCountry "AUT"]
[SourceTitle "playchess.com"]
[Source "ChessBase"]
[SourceQuality "1"]
[TimeControl "40/5400+30:1800+30"]

{[%evp 9,67,1,16,0,0,-6,13,0,3,-7,0,0,7,0,-5,-20,33,23,98,65,65,43,43,39,37,36,69,0,16,16,17,0,0,-11,-19,-32,0,-1,0,0,58,34,122,127,386,410,931,930,1020,1018,1351,1313,1235,1127,1354,775,943,938,899,881]} 1. Nf3 {[%emt 0:03:37]} d5 {[%emt 0:01:16]} 2. g3 {[%emt 0:02:19]} Nf6 {[%emt 0:01:07]} 3. Bg2 {[%emt 0:00:15]} e6 {[%emt 0:01:59]} 4. d4 {[%emt 0:02:17]} b5 {[%emt 0:01:27]} 5. O-O {[%emt 0:02:20]} Be7 {[%emt 0:00:50]} 6. Bg5 {[%emt 0:03:13] A46: 1 d4 Nf6 2 Nf3 e6: Torre, London and Colle Systems.} O-O {[%emt 0:11:21]} 7. c3 {[%emt 0:03:22]} a5 {[%emt 0:02:33]} 8. Nbd2 {[%emt 0:02:28] The position is equal.} Nbd7 {[%emt 0:04:07] [#]} 9. Qc2 $146 {[%emt 0:14:37]} ({Predecessor:} 9. Ne1 c5 10. dxc5 Nxc5 11. Nd3 {½-½ (11) Vazquez Igarza,R (2596)-Epishin,V (2563) San Sebastian 2015}) 9... h6 {[%emt 0:16:52]} 10. Bxf6 {[%emt 0:03:10]} Nxf6 {[%emt 0:00:11]} 11. Ne5 {[%emt 0:01:46]} c5 {[%emt 0:01:31]} 12. a4 {[%emt 0:07:44]} Qc7 {[%emt 0:09:01]} (12... bxa4 $11 13. Nc6 (13. Qxa4 cxd4 14. Qxd4 Qc7 $11) 13... Qc7 14. Nxe7+ (14. Qxa4 Bd6 $15) 14... Qxe7) 13. axb5 $14 {[%emt 0:14:27] Black should prevent Nc6.} Rb8 {[%emt 0:13:52]} (13... cxd4 $11 {keeps the balance.} 14. Nc6 dxc3 15. Qxc3 (15. Nxe7+ Qxe7 16. bxc3 Qc5 $11) 15... a4) 14. Qa4 {[%emt 0:07:40] White is much more active.} Bd7 {[%emt 0:01:34]} 15. c4 {[%emt 0:06:46]} cxd4 {[%emt 0:03:40]} 16. Nxd7 {[%emt 0:00:04]} Nxd7 {[%emt 0:02:01]} 17. cxd5 {[%emt 0:02:59]} ({Don't play} 17. Qxa5 Qxa5 18. Rxa5 Bb4 $15) 17... Bb4 {[%emt 0:09:51]} 18. Nf3 {[%emt 0:08:33]} ({White should try} 18. dxe6 $14 Nc5 19. exf7+ Kh8 20. Qd1) 18... Nc5 {[%emt 0:06:30]} 19. Qc2 {[%emt 0:03:49]} e5 {[%emt 0:04:57]} 20. Rac1 $36 {[%emt 0:00:03][%mdl 2048] White is more active.} Rxb5 {[%emt 0:01:21]} 21. Qf5 {[%emt 0:01:25]} (21. e3 $5 {[%cal Re3d4]} d3 22. Qxd3 Nxd3 23. Rxc7 $11) 21... Re8 {[%emt 0:00:35]} 22. Rc4 {[%emt 0:01:09]} Qd6 {[%emt 0:00:22]} 23. Rfc1 {[%emt 0:00:59]} Rb6 {[%emt 0:00:29]} 24. Qc2 {[%emt 0:00:51][%cal Rc4c5]} Rc8 {[%emt 0:01:01]} (24... Rb5 $11) 25. Nd2 {[%emt 0:01:42] [#] aiming for Ne4.} Rb5 {[%emt 0:01:42]} (25... Rcb8 $14) 26. Ne4 $16 {[%emt 0:01:54]} Qb6 {[%emt 0:02:14][%mdl 8192] A mistake that costs the game.} (26... Qd7 $16) 27. Bh3 $18 {[%emt 0:00:36]} Rc7 {[%emt 0:00:46]} (27... Qg6 $142 28. d6 Rd8) 28. d6 {[%emt 0:00:18] White is clearly winning.} Rc6 {[%emt 0:00:26] [#]} 29. Bd7 $1 {[%emt 0:02:21][%mdl 512]} g6 {[%emt 0:00:49]} (29... d3 30. exd3) 30. Bxc6 {[%emt 0:00:19]} Qxc6 {[%emt 0:00:23]} 31. Nxc5 {[%emt 0:00:14]} Qxd6 {[%emt 0:00:25]} 32. Nd3 {[%emt 0:00:41]} e4 {[%emt 0:00:24]} 33. Nxb4 {[%emt 0:00:06]} axb4 {[%emt 0:00:06]} 34. Qxe4 {[%emt 0:00:05] Weighted Error Value: White=0.12 (very precise) /Black=0.40} 1-0

[Event "Austrian Championship 2022"]
[Site "Vienna"]
[Date "2022.08.17"]
[Round "7.10"]
[White "Lerch, Johannes"]
[Black "Shengelia, David"]
[Result "1/2-1/2"]
[ECO "A15"]
[WhiteElo "2222"]
[BlackElo "2462"]
[Annotator "TA"]
[PlyCount "92"]
[EventDate "2022.08.12"]
[EventType "swiss"]
[EventCountry "AUT"]
[SourceTitle "playchess.com"]
[Source "ChessBase"]
[SourceQuality "1"]
[TimeControl "40/5400+30:1800+30"]

{[%evp 12,92,9,2,35,19,37,28,34,40,32,26,40,28,33,34,34,16,41,44,70,59,72,78,68,68,65,68,62,47,47,14,24,14,66,22,145,146,151,149,151,140,140,103,93,95,95,95,95,95,95,88,95,88,88,71,88,88,88,88,88,70,81,81,81,87,110,110,110,110,110,0,110,0,110,110,116,0,110,110,110,0,109]} 1. Nf3 {[%emt 0:00:03]} Nf6 {[%emt 0:00:20]} 2. c4 {[%emt 0:00:08]} b6 {[%emt 0:01:00]} 3. g3 {[%emt 0:01:16]} Bb7 {[%emt 0:00:27]} 4. Bg2 {[%emt 0:00:05]} g6 {[%emt 0:01:37]} 5. b3 {[%emt 0:00:32]} Bg7 {[%emt 0:03:11]} 6. Bb2 {[%emt 0:00:06]} O-O {[%emt 0:00:27]} 7. O-O {[%emt 0:00:59]} (7. e3 {seems wilder.} e6 8. O-O Qe7 9. d4) 7... a5 {[%emt 0:00:47] A15: English Opening: 1...Nf6.} 8. Nc3 {[%emt 0:05:05]} Na6 {[%emt 0:01:01] [#]} 9. a3 $146 {[%emt 0:02:35]} ({Predecessor:} 9. d4 Qc8 10. Rc1 Ne4 11. e3 Nxc3 12. Bxc3 d5 13. Qe2 e6 14. Rfd1 c5 15. Qb2 {1-0 (40) Benkovic,P (2414)-Konjevic,D (2339) Herceg Novi 2001}) 9... e6 {[%emt 0:05:09] White has an edge.} 10. Qc2 {[%emt 0:05:35]} d5 {[%emt 0:05:06]} 11. e3 {[%emt 0:04:48]} c5 {[%emt 0:07:47]} 12. d3 {[%emt 0:04:40]} Rc8 {[%emt 0:04:55]} 13. Rad1 {[%emt 0:06:46]} Qe7 {[%emt 0:13:56]} 14. Nb5 {[%emt 0:08:47]} Bc6 {[%emt 0:15:33]} 15. Ne5 {[%emt 0:03:35]} Bxb5 {[%emt 0:01:45]} 16. cxb5 {[%emt 0:00:03]} Nb8 {[%emt 0:01:27]} 17. e4 {[%emt 0:17:09]} Nfd7 {[%emt 0:06:45]} 18. Nf3 {[%emt 0:01:08] White is more active.} Bxb2 {[%emt 0:09:26]} 19. Qxb2 {[%emt 0:00:02]} Qf6 {[%emt 0:00:56]} 20. e5 {[%emt 0:02:58]} Qg7 {[%emt 0:00:28]} 21. b4 {[%emt 0:10:42]} axb4 {[%emt 0:00:58]} 22. axb4 {[%emt 0:00:52]} c4 {[%emt 0:00:45]} (22... g5 $11) 23. d4 {[%emt 0:00:53]} c3 {[%emt 0:01:13]} (23... Rc7 $11) 24. Qb3 $16 {[%emt 0:02:40]} ({Much weaker is} 24. Qc2 $6 Rc4 $11) 24... Rc4 {[%emt 0:00:14]} 25. Rd3 $1 {[%emt 0:00:30]} Rfc8 {[%emt 0:02:02] [#]} 26. Rc1 $1 {[%emt 0:00:14]} c2 {[%emt 0:00:18]} 27. Rd2 {[%emt 0:01:26]} Qf8 {[%emt 0:00:32]} 28. Rdxc2 {[%emt 0:01:26]} Rxc2 {[%emt 0:00:32]} 29. Rxc2 {[%emt 0:00:04]} Rxc2 {[%emt 0:00:04]} 30. Qxc2 {[%emt 0:00:02]} Qxb4 {[%emt 0:00:05]} 31. Qd3 {[%emt 0:03:57]} Nf8 {[%emt 0:00:47]} 32. h4 {[%emt 0:02:27]} Nbd7 {[%emt 0:00:44]} 33. Nd2 {[%emt 0:00:52]} Qa4 {[%emt 0:02:01]} 34. f4 {[%emt 0:01:24]} Qd1+ {[%emt 0:00:43]} 35. Kf2 {[%emt 0:00:18]} h6 {[%emt 0:01:47]} 36. Bf3 {[%emt 0:01:56]} Qa1 {[%emt 0:00:11]} 37. g4 {[%emt 0:01:18]} f6 {[%emt 0:03:16]} 38. Qe3 {[%emt 0:06:28][%cal Of4f5]} fxe5 {[%emt 0:02:55]} 39. fxe5 {[%emt 0:00:08]} ({Reject} 39. dxe5 $6 Nc5 $11) 39... Kg7 {[%emt 0:00:16]} 40. Kg2 {[%emt 0:01:59]} Nh7 {[%emt 0:02:14]} 41. Kf2 {[%emt 0:34:23]} (41. Be2 $16) 41... Ndf8 {[%emt 0:32:15]} (41... Nhf8 $1 $11) 42. Kg2 {[%emt 0:00:00]} (42. Kg3 $16) 42... Qb2 {[%emt 0:00:00]} (42... Nd7 $1 $11 {keeps the balance.}) 43. Be2 {[%emt 0:00:00]} Qc1 {[%emt 0:00:00] [#]} 44. Bf3 {[%emt 0:00:00]} (44. Nc4 $1 $16 {[%mdl 512]} Qxe3 45. Nxe3) 44... Nd7 {[%emt 0:00:00]} (44... Qb2 $1 $11 {remains equal.}) 45. Kf2 {[%emt 0:00:00]} Qa1 {[%emt 0:00:00]} 46. Kg2 {[%emt 0:00:00]} Qc1 $1 {[%emt 0:00:00] Black defended with fortune.  Weighted Error Value: White=0.16 (very precise) /Black=0.27 (precise)} 1/2-1/2

[Event "Austrian Championship 2022"]
[Site "Vienna"]
[Date "2022.08.17"]
[Round "7.11"]
[White "Schroll, Gerhard"]
[Black "Neumeier, Klaus"]
[Result "1/2-1/2"]
[WhiteElo "2281"]
[BlackElo "2257"]
[Annotator "TA"]
[PlyCount "31"]
[EventDate "2022.08.12"]
[EventType "swiss"]
[EventCountry "AUT"]
[SourceTitle "playchess.com"]
[Source "ChessBase"]
[SourceQuality "1"]
[TimeControl "40/5400+30:1800+30"]

{[%evp 15,18,-18,-19,-17,-39]} 1. d4 {[%emt 0:09:26]} d5 {[%emt 0:00:14]} 2. Nf3 {[%emt 0:00:44]} Nf6 {[%emt 0:00:16]} 3. Bf4 {[%emt 0:00:33]} c5 {[%emt 0:01:00]} 4. c3 {[%emt 0:01:34]} Nc6 {[%emt 0:04:35]} 5. e3 {[%emt 0:01:19]} Qb6 {[%emt 0:00:45]} 6. Qb3 {[%emt 0:01:11]} c4 {[%emt 0:00:25]} 7. Qxb6 {[%emt 0:04:10]} axb6 {[%emt 0:00:05][%cal Ba7b6,Bb6b5,Bb5b4][%mdl 32]} 8. Nbd2 {[%emt 0:01:07]} b5 {[%emt 0:00:19]} 9. a3 {[%emt 0:01:31] Inhibits b4. D02: 1 d4 d5 2 Nf3 sidelines, including 2...Nf6 3 g3 and 2...Nf6 3 Bf4.} b4 {[%emt 0:00:35] [#] Not much happened in this game.} {Predecessor:} 10. cxb4 $146 Nxb4 11. Rc1 Nc6 12. Be2 Bf5 13. O-O e6 14. Nh4 Bg4 15. f3 Bh5 16. g4 {0-1 (57) Bordi,K (2288)-Abdusattorov,N (2627) Chess.com INT 2020} 1/2-1/2

[Event "Austrian Championship 2022"]
[Site "Vienna"]
[Date "2022.08.17"]
[Round "7.12"]
[White "Steiner, Adam"]
[Black "Balinov, Ilia"]
[Result "0-1"]
[ECO "B40"]
[WhiteElo "2226"]
[BlackElo "2419"]
[Annotator "TA"]
[PlyCount "42"]
[EventDate "2022.08.12"]
[EventType "swiss"]
[EventCountry "AUT"]
[SourceTitle "playchess.com"]
[Source "ChessBase"]
[SourceQuality "1"]
[TimeControl "40/5400+30:1800+30"]

{[%evp 9,42,6,-1,0,19,10,14,15,18,15,39,36,43,51,67,5,72,74,98,93,141,129,132,100,97,95,90,54,87,59,59,15,27,-698,-654]} 1. e4 {[%emt 0:00:05]} c5 {[%emt 0:00:10]} 2. Nf3 {[%emt 0:00:13]} e6 {[%emt 0:00:27]} 3. b3 {[%emt 0:00:17]} b6 {[%emt 0:00:17]} 4. d4 {[%emt 0:00:17]} cxd4 {[%emt 0:00:04]} 5. Nxd4 {[%emt 0:00:06]} Bb7 {[%emt 0:00:08]} 6. Nd2 {[%emt 0:00:26] B40: Sicilian: 2...e6, Unusual lines.} Nc6 {[%emt 0:00:19]} 7. Nxc6 {[%emt 0:02:01]} Bxc6 {[%emt 0:01:54]} 8. Bb2 {[%emt 0:00:26] Prevents Qf6. The position is equal.} Nf6 {[%emt 0:06:17]} 9. Bd3 {[%emt 0:00:16]} d6 {[%emt 0:13:41]} 10. Qe2 {[%emt 0:02:33] [#]} Qc7 $146 {[%emt 0:03:07]} ({Predecessor:} 10... Be7 11. O-O-O O-O 12. f4 Qc7 13. Kb1 Rfc8 14. h4 Nd7 15. Rh3 Nc5 16. h5 e5 17. fxe5 dxe5 {½-½ (85) Vachier Lagrave,M (2762)-Van Wely,L (2654) Dubai 2014}) 11. O-O-O {[%emt 0:09:29]} Nd7 {[%emt 0:04:31]} 12. Nf3 {[%emt 0:16:31]} (12. f3 $14) 12... Nc5 {[%emt 0:14:23]} (12... e5 $1 $11 {remains equal.}) 13. Nd4 $16 {[%emt 0:00:41]} Nxd3+ {[%emt 0:00:25]} 14. Rxd3 {[%emt 0:00:29] [#] Rc3 is the strong threat.} e5 {[%emt 0:12:43]} (14... Bb7 $142) 15. Nxc6 {[%emt 0:03:51]} Qxc6 {[%emt 0:00:35]} 16. f4 {[%emt 0:05:43] Hoping for Rc3.} Be7 {[%emt 0:04:26]} 17. fxe5 {[%emt 0:00:24]} dxe5 {[%emt 0:00:06]} 18. Kb1 {[%emt 0:20:46] [#] Threatens to win with Rc3.} O-O {[%emt 0:04:13]} 19. Rhd1 {[%emt 0:01:14]} f6 {[%emt 0:05:05][%cal Bf7f6,Bf6f5][%mdl 32]} 20. Qg4 {[%emt 0:03:48] aiming for Rc3.} Rad8 {[%emt 0:02:15]} 21. Rd7 $2 {[%emt 0:05:59][%mdl 8192]} (21. Rd5 $11) 21... f5 $1 {[%emt 0:01:36] Weighted Error Value: White=0.61/Black=0.18 (very precise)} 0-1

[Event "Austrian Championship 2022"]
[Site "Vienna"]
[Date "2022.08.17"]
[Round "7.13"]
[White "Borrmann, Laurenz"]
[Black "Hoegl, Emanuel"]
[Result "1/2-1/2"]
[ECO "B12"]
[WhiteElo "2274"]
[BlackElo "2094"]
[Annotator "NA RC"]
[PlyCount "49"]
[EventDate "2022.08.12"]
[EventType "swiss"]
[EventCountry "AUT"]
[SourceTitle "playchess.com"]
[Source "ChessBase"]
[SourceQuality "1"]
[TimeControl "40/5400+30:1800+30"]

1. e4 {[%emt 0:00:06]} c6 {[%emt 0:00:04]} 2. d4 {[%emt 0:00:07]} d5 {[%emt 0:00:04]} 3. e5 {[%emt 0:00:06]} Bf5 {[%emt 0:00:05]} 4. Nf3 {[%emt 0:00:06]} e6 {[%emt 0:00:04]} 5. Be2 {[%emt 0:00:05]} h6 {[%emt 0:02:04]} 6. O-O {[%emt 0:01:15]} Ne7 {[%emt 0:00:08]} 7. a4 {[%emt 0:06:48]} Nd7 {[%emt 0:00:11]} 8. b4 {[%emt 0:02:12]} g5 {[%emt 0:05:11]} 9. Ne1 {[%emt 0:07:05]} Bg6 {[%emt 0:01:50]} 10. a5 {[%emt 0:04:03]} Nf5 {[%emt 0:05:02]} 11. b5 {[%emt 0:06:34]} c5 {[%emt 0:03:33]} 12. dxc5 {[%emt 0:01:12]} Bxc5 {[%emt 0:04:09]} 13. Bb2 {[%emt 0:01:21]} O-O {[%emt 0:05:53]} 14. c4 {[%emt 0:13:02]} dxc4 {[%emt 0:08:11]} 15. Nd2 {[%emt 0:01:04]} Bd4 {[%emt 0:22:50]} 16. Bxd4 {[%emt 0:01:34]} Nxd4 {[%emt 0:00:52]} 17. Nxc4 {[%emt 0:00:11]} Nxb5 {[%emt 0:05:53]} 18. Bh5 {[%emt 0:13:33]} Bxh5 {[%emt 0:17:27]} 19. Qxh5 {[%emt 0:00:05]} Qc7 {[%emt 0:00:10]} 20. Rc1 {[%emt 0:06:56]} Nxe5 {[%emt 0:02:03]} 21. Qxh6 {[%emt 0:02:56]} f6 {[%emt 0:01:26]} 22. Nxe5 {[%emt 0:03:45]} Qxe5 {[%emt 0:03:29]} 23. Qg6+ {[%emt 0:06:44]} Kh8 {[%emt 0:00:04]} 24. Nf3 {[%emt 0:08:28]} Qf5 {[%emt 0:03:52]} 25. Qxf5 {[%emt 0:00:14]} 1/2-1/2